bitfinex-derivatives/quotes_BTCF0:USTF0_20250325
["timestamp","ask_amount","ask_price","bid_price","bid_amount"]
[1742892370333,0.17922991,86691.0,86690.0,1.67363711]
[1742892370532,0.17922991,86691.0,86690.0,0.17363711]
[1742892373124,0.17922991,86691.0,86690.0,0.05828591]
[1742892373324,0.20982991,86691.0,86690.0,0.01358]
[1742892373533,0.32166991,86691.0,86690.0,0.01358]
[1742892374438,0.1153539,86688.0,86687.0,0.00046143]
[1742892374830,0.17993391,86688.0,86687.0,0.00046143]
[1742892378641,0.1153605,86683.0,86682.0,0.00017295]
[1742892378839,0.11724051,86683.0,86682.0,0.00017295]
[1742892379055,0.18144051,86683.0,86682.0,0.00017295]
[1742892380438,0.18244051,86683.0,86682.0,0.00017295]
[1742892383041,0.18244051,86683.0,86682.0,0.03147295]
[1742892384444,0.1950635,86683.0,86682.0,0.03147295]
[1742892384947,0.18244051,86683.0,86682.0,0.03147295]
[1742892388245,0.19500185,86683.0,86682.0,0.03147295]
[1742892388450,0.19500185,86683.0,86682.0,0.00017295]
[1742892388948,0.18244051,86683.0,86682.0,0.00017295]
[1742892390247,0.18244051,86683.0,86682.0,0.03227295]
[1742892390450,0.18244051,86683.0,86682.0,0.06367295]
[1742892398355,0.18244051,86683.0,86682.0,0.09547295]
[1742892404657,0.29428051,86683.0,86682.0,0.09547295]
[1742892405363,0.18244051,86683.0,86682.0,0.09547295]
[1742892405563,0.29428051,86683.0,86682.0,0.09547295]
[1742892405860,0.29328051,86683.0,86682.0,0.09547295]
[1742892412363,0.29328051,86683.0,86682.0,0.00017295]
[1742892412566,0.32368051,86683.0,86682.0,0.00017295]
[1742892416364,0.29328051,86683.0,86682.0,0.00017295]
[1742892418769,0.11724051,86683.0,86682.0,0.11553475]
[1742892419161,0.11724051,86683.0,86682.0,0.06317295]
[1742892419362,0.14844051,86683.0,86682.0,0.17853475]
[1742892419562,0.14844051,86683.0,86682.0,0.06317295]
[1742892419769,0.17984051,86683.0,86682.0,0.06317295]
[1742892420067,0.17984051,86683.0,86682.0,0.17853475]
[1742892421174,0.11724051,86683.0,86682.0,0.53933475]
[1742892421669,0.00188001,86683.0,86682.0,0.53933475]
[1742892421868,0.00017295,86691.0,86690.0,0.1153512]
[1742892422071,0.00149295,86691.0,86690.0,0.2099512]
[1742892422266,0.00017295,86691.0,86690.0,0.5707512]
[1742892422465,0.1154232,86696.0,86695.0,0.1153445]
[1742892422674,0.0319,86703.0,86700.0,0.0576689]
[1742892422869,0.1167349,86703.0,86702.0,0.1153352]
[1742892423177,0.1167349,86703.0,86702.0,0.1159352]
[1742892423474,0.1482349,86703.0,86702.0,0.1771352]
[1742892423679,0.1481549,86703.0,86702.0,0.1771352]
[1742892423875,0.1166549,86703.0,86702.0,1.6771352]
[1742892424096,0.1196549,86703.0,86702.0,1.6771352]
[1742892424377,0.00432,86703.0,86702.0,1.6771352]
[1742892424672,0.003,86703.0,86702.0,1.6771352]
[1742892424870,8e-05,86708.0,86707.0,0.1153286]
[1742892425076,8e-05,86708.0,86707.0,0.55083881]
[1742892425382,0.0014,86708.0,86707.0,0.55083881]
[1742892425571,0.00132,86708.0,86707.0,2.05083881]
[1742892425772,0.11549675,86711.0,86710.0,0.1153246]
[1742892425961,0.11549675,86711.0,86710.0,0.1488246]
[1742892426278,0.11549675,86711.0,86710.0,0.1796246]
[1742892426471,0.11685675,86711.0,86710.0,0.1796246]
[1742892426768,0.11685675,86711.0,86710.0,1.6796246]
[1742892426975,0.11749675,86711.0,86710.0,1.6796246]
[1742892427881,0.11749625,86711.0,86710.0,1.6796246]
[1742892428177,0.11949625,86711.0,86710.0,1.6796246]
[1742892428476,0.00417295,86711.0,86710.0,1.6796246]
[1742892428879,0.11949625,86711.0,86710.0,1.6796246]
[1742892431079,0.15129625,86711.0,86710.0,0.1796246]
[1742892431280,0.15261625,86711.0,86710.0,0.0643]
[1742892431481,0.18531625,86711.0,86710.0,0.1796246]
[1742892434084,0.00549295,86711.0,86710.0,0.2125246]
[1742892434275,0.00417295,86711.0,86710.0,0.2125246]
[1742892434472,0.00417295,86711.0,86710.0,0.5733246]
[1742892434882,0.00417295,86711.0,86710.0,0.5833246]
[1742892439189,0.00417295,86711.0,86710.0,0.9911246]
[1742892440376,0.11949625,86711.0,86710.0,0.9911246]
[1742892440594,0.11949625,86711.0,86710.0,0.5833246]
[1742892440888,0.00417295,86711.0,86710.0,0.5833246]
[1742892441483,0.11949625,86711.0,86710.0,0.5833246]
[1742892443688,0.00417295,86711.0,86710.0,0.5833246]
[1742892445583,0.00417295,86711.0,86710.0,0.5933246]
[1742892447499,0.03737295,86711.0,86710.0,0.5933246]
[1742892451992,0.0004,86712.0,86710.0,0.5933246]
[1742892452189,8e-05,86713.0,86712.0,0.1153219]
[1742892452389,8e-05,86713.0,86712.0,0.3200219]
[1742892452591,8e-05,86713.0,86712.0,1.8200219]
[1742892453499,0.00308,86713.0,86712.0,1.8200219]
[1742892453702,0.03558,86713.0,86712.0,1.9317819]
[1742892454592,0.1509006,86713.0,86712.0,1.9317819]
[1742892455405,0.1539006,86713.0,86712.0,1.9317819]
[1742892455702,0.03858,86713.0,86712.0,1.9317819]
[1742892456197,0.07048,86713.0,86712.0,1.9317819]
[1742892457200,0.1858006,86713.0,86712.0,1.9317819]
[1742892458905,0.07048,86713.0,86712.0,1.9317819]
[1742892459701,0.07048,86713.0,86712.0,1.8200219]
[1742892460005,0.07048,86713.0,86712.0,1.9317819]
[1742892460807,0.1858006,86713.0,86712.0,1.9317819]
[1742892461303,0.07048,86713.0,86712.0,1.9317819]
[1742892461696,0.1858006,86713.0,86712.0,1.9317819]
[1742892461907,0.07048,86713.0,86712.0,1.9317819]
[1742892465604,0.00017295,86721.0,86720.0,0.1153113]
[1742892465903,0.00017295,86721.0,86720.0,0.5830113]
[1742892466310,0.00017295,86721.0,86720.0,2.0830113]
[1742892467009,0.00417295,86721.0,86720.0,2.0830113]
[1742892467309,0.00717295,86721.0,86720.0,2.0830113]
[1742892467806,0.12248295,86721.0,86720.0,2.0830113]
[1742892468007,0.00717295,86721.0,86720.0,2.09173412]
[1742892468195,0.03967295,86721.0,86720.0,2.09173412]
[1742892468900,0.03567295,86721.0,86720.0,2.09173412]
[1742892469115,0.03867295,86721.0,86720.0,2.09173412]
[1742892471907,1e-08,86721.0,86720.0,2.19173412]
[1742892472102,0.032,86734.0,86727.0,0.115302]
[1742892472303,0.17457246,86728.0,86727.0,0.576782]
[1742892472509,0.1472828,86742.0,86732.0,0.1152953]
[1742892472805,0.20832695,86733.0,86732.0,1.6459753]
[1742892473012,0.20732695,86733.0,86732.0,1.7394753]
[1742892473396,0.20732695,86733.0,86732.0,1.7294753]
[1742892474003,0.21232695,86733.0,86732.0,1.7294753]
[1742892474812,0.21232695,86733.0,86732.0,1.8412353]
[1742892475215,0.01,86733.0,86732.0,1.8412353]
[1742892476314,0.0326,86739.0,86738.0,0.1152874]
[1742892476511,0.0326,86739.0,86738.0,0.5967274]
[1742892477001,0.0326,86739.0,86738.0,2.1588274]
[1742892477608,0.0376,86739.0,86738.0,2.1588274]
[1742892478107,0.0376,86739.0,86738.0,2.17133057]
[1742892479215,0.0336,86739.0,86738.0,2.17133057]
[1742892481315,0.0336,86739.0,86738.0,2.16133057]
[1742892487019,0.0336,86739.0,86738.0,2.27305057]
[1742892487421,0.0652,86739.0,86738.0,2.27305057]
[1742892494831,0.0336,86739.0,86738.0,2.27305057]
[1742892495031,0.00017295,86741.0,86738.0,2.29305057]
[1742892495220,0.0311,86753.0,86752.0,0.1152688]
[1742892495426,0.0311,86753.0,86752.0,0.1785688]
[1742892495735,0.03202,86753.0,86752.0,1.6785688]
[1742892495936,0.1463674,86753.0,86752.0,1.6785688]
[1742892496933,0.1493674,86753.0,86752.0,1.6785688]
[1742892498233,0.1794674,86753.0,86752.0,1.6785688]
[1742892498732,0.0642,86753.0,86752.0,1.6785688]
[1742892500651,0.003,86753.0,86752.0,1.6785688]
[1742892501054,0.0321,86758.0,86754.0,0.0576326]
[1742892501256,0.24192876,86759.0,86758.0,0.1152608]
[1742892501457,0.24288877,86759.0,86758.0,0.6084208]
[1742892501656,0.27498877,86759.0,86758.0,2.2033208]
[1742892504447,0.03306001,86759.0,86758.0,2.2033208]
[1742892504652,0.0321,86759.0,86758.0,2.2033208]
[1742892508655,0.0321,86759.0,86758.0,2.1833208]
[1742892512866,0.0321,86759.0,86758.0,2.0716008]
[1742892513163,0.0321,86759.0,86758.0,2.1832808]
[1742892513554,0.0321,86759.0,86758.0,2.1932808]
[1742892518271,0.0321,86759.0,86758.0,2.20799788]
[1742892521368,0.0321,86759.0,86758.0,2.1932808]
[1742892522478,0.0321,86759.0,86758.0,2.31798924]
[1742892522774,0.0321,86759.0,86758.0,2.30189629]
[1742892523474,0.0321,86759.0,86758.0,2.28678924]
[1742892525074,0.0321,86759.0,86758.0,2.30182019]
[1742892526272,0.0321,86759.0,86758.0,2.28711175]
[1742892526473,0.0321,86759.0,86758.0,2.2720808]
[1742892527480,0.0321,86759.0,86758.0,2.28710362]
[1742892528776,0.0321,86759.0,86758.0,2.30180878]
[1742892529077,0.0004,86760.0,86758.0,2.18654798]
[1742892529274,0.0004,86760.0,86759.0,0.13028232]
[1742892529473,0.0004,86760.0,86759.0,0.26558748]
[1742892529775,0.0004,86760.0,86759.0,0.32628748]
[1742892529975,0.0004,86760.0,86759.0,1.82628748]
[1742892530477,0.0004,86760.0,86759.0,1.81126466]
[1742892530782,0.0004,86760.0,86759.0,1.82643797]
[1742892530976,0.0004,86760.0,86759.0,1.81126466]
[1742892531969,0.0004,86760.0,86759.0,1.7965595]
[1742892532576,0.0004,86760.0,86759.0,1.80851189]
[1742892532978,0.0004,86760.0,86759.0,1.82322512]
[1742892533980,0.11287119,86760.0,86759.0,1.82322512]
[1742892534574,0.11287119,86760.0,86759.0,1.80851189]
[1742892536876,0.0004,86760.0,86759.0,1.80851189]
[1742892538075,0.00136001,86760.0,86759.0,1.80851189]
[1742892538690,0.0004,86760.0,86759.0,1.80851189]
[1742892539677,0.00132,86760.0,86759.0,1.80851189]
[1742892539882,0.0004,86760.0,86759.0,1.80851189]
[1742892540190,0.03446001,86760.0,86759.0,1.82321646]
[1742892540402,0.0335,86760.0,86759.0,1.80851189]
[1742892543303,0.0654,86760.0,86759.0,1.80851189]
[1742892544409,0.1806581,86760.0,86759.0,1.80851189]
[1742892544609,0.0654,86760.0,86759.0,1.80851189]
[1742892545715,0.0654,86760.0,86759.0,2.16931189]
[1742892546011,0.1806581,86760.0,86759.0,2.16931189]
[1742892546211,0.28168917,86760.0,86759.0,2.12881189]
[1742892546798,0.28168917,86760.0,86759.0,2.15881189]
[1742892548902,0.28168917,86760.0,86759.0,1.68275239]
[1742892549999,0.28168917,86760.0,86759.0,1.79801189]
[1742892556517,0.1806581,86760.0,86759.0,1.79801189]
[1742892559116,0.1487581,86760.0,86759.0,1.79801189]
[1742892559707,0.1496781,86760.0,86759.0,1.79801189]
[1742892560209,0.1165781,86760.0,86759.0,1.79801189]
[1742892560410,0.1156581,86760.0,86759.0,2.15881189]
[1742892562008,0.1487581,86760.0,86759.0,2.15881189]
[1742892563416,0.0004,86760.0,86759.0,2.15881189]
[1742892564310,0.0004,86760.0,86759.0,1.79801189]
[1742892564507,0.0004,86760.0,86759.0,2.15881189]
[1742892564907,0.1156581,86760.0,86759.0,2.15881189]
[1742892565908,0.0004,86760.0,86759.0,2.15881189]
[1742892566105,0.0004,86760.0,86759.0,2.17881189]
[1742892569209,0.09906785,86760.0,86759.0,2.17881189]
[1742892570820,0.09906785,86760.0,86759.0,2.29045189]
[1742892571012,0.09906785,86760.0,86759.0,2.69825189]
[1742892573314,0.0004,86760.0,86759.0,2.69825189]
[1742892575418,0.1156581,86760.0,86759.0,2.58661189]
[1742892575619,0.1456581,86760.0,86759.0,2.56661189]
[1742892575819,0.1775581,86760.0,86759.0,0.95135239]
[1742892576010,0.1785581,86760.0,86759.0,0.95135239]
[1742892576825,0.1785581,86760.0,86759.0,0.54355239]
[1742892577122,0.1785581,86760.0,86759.0,2.15881189]
[1742892577324,0.1775581,86760.0,86759.0,2.15881189]
[1742892580231,0.1775581,86760.0,86759.0,0.65881189]
[1742892580432,0.17851811,86760.0,86759.0,0.65881189]
[1742892581029,0.1775581,86760.0,86759.0,0.65881189]
[1742892581231,0.1784781,86760.0,86759.0,0.65881189]
[1742892581718,0.1775581,86760.0,86759.0,0.65881189]
[1742892584834,0.27725143,86760.0,86759.0,0.65881189]
[1742892586635,0.24535143,86760.0,86759.0,0.65881189]
[1742892586934,0.24535143,86760.0,86759.0,0.68891189]
[1742892587433,0.27775143,86760.0,86759.0,0.65881189]
[1742892588624,0.27871144,86760.0,86759.0,0.29801189]
[1742892591536,0.17901811,86760.0,86759.0,0.29801189]
[1742892591732,0.1780581,86760.0,86759.0,0.29801189]
[1742892591933,0.1780581,86760.0,86759.0,0.18801189]
[1742892592235,0.1156581,86760.0,86759.0,0.18801189]
[1742892592638,0.1471581,86760.0,86759.0,0.18801189]
[1742892592822,0.1788581,86760.0,86759.0,0.18801189]
[1742892594538,0.2096581,86760.0,86759.0,0.18801189]
[1742892595633,0.2096581,86760.0,86759.0,0.07275239]
[1742892597139,0.2096581,86760.0,86753.0,0.0576334]
[1742892597140,0.1152741,86748.0,86747.0,0.0304]
[1742892597335,0.1164341,86748.0,86747.0,0.24552547]
[1742892597536,0.2141341,86748.0,86747.0,0.24552547]
[1742892598832,0.2141341,86748.0,86747.0,0.36080087]
[1742892599039,0.2141341,86748.0,86747.0,0.24552547]
[1742892599241,0.2141341,86748.0,86747.0,0.36080087]
[1742892599841,0.1812341,86748.0,86747.0,0.36080087]
[1742892600142,0.28740415,86748.0,86747.0,0.36080087]
[1742892600444,0.28740415,86748.0,86747.0,0.39110087]
[1742892603342,0.25470415,86748.0,86747.0,0.39110087]
[1742892603542,0.25354415,86748.0,86747.0,0.39110087]
[1742892603846,0.37567372,86748.0,86747.0,0.39110087]
[1742892604540,0.34357372,86748.0,86747.0,0.39110087]
[1742892604742,0.34465373,86748.0,86747.0,0.39110087]
[1742892607150,0.28901974,86748.0,86747.0,0.39110087]
[1742892607550,0.32151974,86748.0,86747.0,0.39110087]
[1742892607751,0.35181974,86748.0,86747.0,0.39110087]
[1742892610060,0.1152781,86745.0,86744.0,0.00017295]
[1742892610246,0.1165581,86745.0,86744.0,0.00017295]
[1742892610447,0.1794581,86745.0,86744.0,0.00149295]
[1742892610750,0.1794581,86745.0,86744.0,0.00077295]
[1742892610941,0.1794581,86745.0,86744.0,0.01309149]
[1742892611138,0.1794581,86745.0,86744.0,0.00077295]
[1742892612657,0.1794581,86745.0,86744.0,0.01232019]
[1742892612843,0.1794581,86745.0,86744.0,0.01292019]
[1742892613238,0.1794581,86745.0,86744.0,0.07522019]
[1742892614447,0.1794581,86745.0,86744.0,0.07462019]
[1742892614754,0.1794581,86745.0,86744.0,0.07522019]
[1742892615049,0.1794581,86745.0,86744.0,0.07462019]
[1742892615750,0.1794581,86745.0,86744.0,0.07522019]
[1742892617257,0.35204114,86745.0,86744.0,0.07522019]
[1742892620359,0.1794581,86745.0,86744.0,0.07522019]
[1742892620851,0.1794581,86745.0,86744.0,0.19049959]
[1742892622159,0.1794581,86745.0,86744.0,0.07522019]
[1742892623860,0.1794581,86745.0,86744.0,0.19049959]
[1742892624261,0.1794581,86745.0,86744.0,0.07522019]
[1742892628660,0.28454129,86745.0,86744.0,0.07522019]
[1742892628862,0.28454129,86745.0,86744.0,0.19049959]
[1742892632457,0.28454129,86745.0,86744.0,0.18989959]
[1742892633050,0.28454129,86745.0,86744.0,0.19049959]
[1742892635967,0.1794581,86745.0,86744.0,0.19049959]
[1742892641568,0.28519596,86745.0,86744.0,0.19049959]
[1742892645877,0.38703532,86745.0,86744.0,0.19049959]
[1742892647878,0.32413532,86745.0,86744.0,0.55129959]
[1742892648183,0.20885722,86745.0,86744.0,0.55129959]
[1742892648573,0.20885722,86745.0,86744.0,2.05129959]
[1742892648768,0.20757722,86745.0,86744.0,2.05129959]
[1742892648970,0.32285532,86745.0,86744.0,2.05129959]
[1742892649581,0.1152781,86745.0,86744.0,2.05129959]
[1742892651079,8e-05,86746.0,86745.0,0.1152781]
[1742892651283,0.1153567,86746.0,86745.0,0.2101181]
[1742892651583,0.1166367,86746.0,86745.0,0.2101181]
[1742892651785,0.00136,86746.0,86745.0,1.7101181]
[1742892651984,8e-05,86746.0,86745.0,1.7101181]
[1742892652385,0.1153567,86746.0,86745.0,1.7101181]
[1742892652683,8e-05,86746.0,86745.0,1.7101181]
[1742892652873,0.1153567,86746.0,86745.0,1.7101181]
[1742892653285,8e-05,86746.0,86745.0,1.7101181]
[1742892653986,0.1153567,86746.0,86745.0,1.7101181]
[1742892654283,8e-05,86746.0,86745.0,1.7101181]
[1742892655383,8e-05,86746.0,86745.0,1.7601181]
[1742892656288,0.17282341,86747.0,86746.0,0.1152767]
[1742892656481,0.17290341,86747.0,86746.0,0.1659167]
[1742892656685,0.17290341,86747.0,86746.0,0.2289167]
[1742892656686,0.17418341,86747.0,86746.0,0.2289167]
[1742892656881,0.00136,86747.0,86746.0,1.7289167]
[1742892657186,8e-05,86747.0,86746.0,1.7289167]
[1742892659774,8e-05,86747.0,86746.0,1.7319167]
[1742892659975,8e-05,86747.0,86746.0,1.7359167]
[1742892664976,8e-05,86747.0,86746.0,1.8475167]
[1742892671788,0.17282341,86758.0,86757.0,0.1152621]
[1742892671991,0.20640341,86758.0,86757.0,0.4766621]
[1742892672187,0.20640341,86758.0,86757.0,0.4966621]
[1742892672395,0.20640341,86758.0,86757.0,2.2045621]
[1742892672690,0.20512341,86758.0,86757.0,2.2045621]
[1742892672895,0.20512341,86758.0,86757.0,2.2055621]
[1742892673393,0.0323,86758.0,86757.0,2.2065621]
[1742892673894,0.0623,86758.0,86757.0,2.2065621]
[1742892679692,0.17270223,86759.0,86758.0,0.1152608]
[1742892679992,0.17270223,86759.0,86758.0,0.5296608]
[1742892680196,0.23966223,86759.0,86758.0,0.5605608]
[1742892680498,0.24094223,86759.0,86758.0,2.0705608]
[1742892680798,0.23822223,86759.0,86758.0,2.0705608]
[1742892681603,0.23822223,86759.0,86758.0,2.0715608]
[1742892685206,0.0656,86759.0,86758.0,2.0715608]
[1742892685592,0.0656,86759.0,86758.0,2.0615608]
[1742892690298,0.0656,86759.0,86758.0,2.07630835]
[1742892694605,0.0656,86759.0,86758.0,2.07788411]
[1742892694806,0.0656,86759.0,86758.0,2.08788411]
[1742892695901,0.0656,86759.0,86758.0,2.08800807]
[1742892697309,0.0656,86759.0,86758.0,2.07313656]
[1742892700707,0.0656,86759.0,86758.0,2.06313656]
[1742892701203,0.0656,86759.0,86758.0,2.17469656]
[1742892705510,0.0656,86759.0,86758.0,2.18956834]
[1742892706619,0.0656,86759.0,86758.0,2.15866834]
[1742892706920,0.0656,86759.0,86758.0,2.19056834]
[1742892708604,0.1808595,86759.0,86758.0,2.01410834]
[1742892708809,0.2118595,86759.0,86758.0,1.88397576]
[1742892709107,0.2118595,86759.0,86758.0,1.97923656]
[1742892709605,0.2118595,86759.0,86758.0,0.47923656]
[1742892709815,0.2131395,86759.0,86758.0,0.47923656]
[1742892710313,0.2131395,86759.0,86758.0,1.97923656]
[1742892710503,0.2118595,86759.0,86758.0,1.97923656]
[1742892713511,0.2118595,86759.0,86758.0,2.01033656]
[1742892713712,0.2118595,86759.0,86758.0,1.97923656]
[1742892718324,0.2118595,86759.0,86758.0,2.01213656]
[1742892720215,0.0966,86759.0,86758.0,2.01213656]
[1742892720617,0.0966,86759.0,86758.0,2.04413656]
[1742892721913,0.2118595,86759.0,86758.0,2.04413656]
[1742892723716,0.2118595,86759.0,86758.0,0.54413656]
[1742892723915,0.2132195,86759.0,86758.0,0.54413656]
[1742892724320,0.2118595,86759.0,86758.0,0.54413656]
[1742892727930,0.41900618,86759.0,86758.0,0.54413656]
[1742892728431,0.42036618,86759.0,86758.0,0.54413656]
[1742892731523,0.31443495,86759.0,86758.0,0.54413656]
[1742892735237,0.38595179,86759.0,86758.0,0.54413656]
[1742892737335,0.35495179,86759.0,86758.0,0.54413656]
[1742892738840,0.1822195,86759.0,86758.0,0.54413656]
[1742892739439,0.1822195,86759.0,86758.0,0.55896478]
[1742892741645,0.1822195,86759.0,86758.0,0.54413656]
[1742892748947,0.40980924,86759.0,86758.0,0.54413656]
[1742892749548,0.40980924,86759.0,86758.0,0.18333656]
[1742892749742,0.40980924,86759.0,86758.0,0.54413656]
[1742892755256,0.40980924,86759.0,86758.0,0.57743656]
[1742892756254,0.28753408,86759.0,86758.0,0.57743656]
[1742892759258,0.28753408,86759.0,86758.0,0.10137576]
[1742892759560,0.28753408,86759.0,86758.0,0.06747576]
[1742892759755,0.28753408,86759.0,86758.0,0.18337656]
[1742892760156,0.28753408,86759.0,86758.0,0.06811576]
[1742892760757,0.1822195,86759.0,86758.0,0.06811576]
[1742892762961,0.1822195,86759.0,86758.0,0.06747576]
[1742892763165,0.1729026,86753.0,86752.0,0.1152685]
[1742892763361,0.1743426,86753.0,86752.0,0.1458685]
[1742892763759,0.1743426,86753.0,86752.0,1.6458685]
[1742892763960,0.2036026,86753.0,86752.0,1.5306]
[1742892764156,0.2036026,86753.0,86752.0,0.0006]
[1742892764157,0.5644026,86753.0,86752.0,0.0006]
[1742892764359,0.1152767,86746.0,86745.0,0.20615729]
[1742892764565,0.1152767,86746.0,86745.0,0.30679729]
[1742892764765,0.1152767,86746.0,86745.0,1.70679729]
[1742892765168,0.1782767,86746.0,86745.0,1.70679729]
[1742892765967,0.1782767,86746.0,86745.0,1.71079729]
[1742892766473,0.1782767,86746.0,86745.0,0.21079729]
[1742892766768,0.1782767,86746.0,86745.0,0.21379729]
[1742892766972,0.1797967,86746.0,86745.0,0.21379729]
[1742892767270,0.1782767,86746.0,86745.0,0.21379729]
[1742892767670,0.1782767,86746.0,86745.0,0.00764]
[1742892769964,0.1782767,86746.0,86745.0,0.1229181]
[1742892772078,0.1782767,86746.0,86745.0,0.1557181]
[1742892772773,0.1459767,86746.0,86745.0,0.1557181]
[1742892773075,0.1459767,86746.0,86745.0,0.1880181]
[1742892775075,0.31852466,86746.0,86745.0,0.1880181]
[1742892775273,0.31996466,86746.0,86745.0,0.1880181]
[1742892776581,0.31996466,86746.0,86745.0,0.07274]
[1742892778378,0.1474167,86746.0,86745.0,0.07274]
[1742892781380,0.1459767,86746.0,86745.0,0.07274]
[1742892781775,0.1459767,86746.0,86745.0,0.1880181]
[1742892782485,0.1459767,86746.0,86745.0,0.07274]
[1742892782873,0.1459767,86746.0,86745.0,0.1880181]
[1742892783069,0.1459767,86746.0,86745.0,0.07274]
[1742892783783,0.1459767,86746.0,86745.0,0.1880181]
[1742892783983,0.1782767,86746.0,86745.0,0.1880181]
[1742892784385,0.38529252,86746.0,86745.0,0.1880181]
[1742892784586,0.38681252,86746.0,86745.0,0.1880181]
[1742892786789,0.38681252,86746.0,86745.0,0.07274]
[1742892787088,0.1797967,86746.0,86745.0,0.1880181]
[1742892789879,0.1797967,86746.0,86745.0,0.07274]
[1742892790485,0.1782767,86746.0,86745.0,0.07274]
[1742892790687,0.1782767,86746.0,86745.0,0.1880181]
[1742892793894,0.1797167,86746.0,86745.0,0.1880181]
[1742892795383,0.1782767,86746.0,86745.0,0.1880181]
[1742892795686,0.1152767,86746.0,86745.0,0.1880181]
[1742892798288,0.1152767,86746.0,86745.0,0.5488181]
[1742892800086,0.1167167,86746.0,86745.0,0.5488181]
[1742892800890,0.00144,86746.0,86745.0,0.5488181]
[1742892801297,0.1167167,86746.0,86745.0,0.5488181]
[1742892801592,0.03334,86746.0,86745.0,0.5488181]
[1742892801796,0.00144,86746.0,86745.0,0.5588181]
[1742892801983,0.1729516,86747.0,86746.0,0.1152767]
[1742892802185,0.1729516,86747.0,86746.0,0.1758767]
[1742892802390,0.1729516,86747.0,86746.0,1.7366767]
[1742892802694,0.1728716,86747.0,86746.0,1.7566767]
[1742892803087,0.1728716,86747.0,86746.0,1.7606767]
[1742892803790,0.1728716,86747.0,86746.0,1.7636767]
[1742892804489,8e-05,86748.0,86747.0,0.1152754]
[1742892804694,8e-05,86748.0,86747.0,0.2062754]
[1742892804997,8e-05,86748.0,86747.0,0.2390754]
[1742892805196,8e-05,86748.0,86747.0,1.7390754]
[1742892805590,8e-05,86748.0,86747.0,1.7420754]
[1742892806903,8e-05,86748.0,86747.0,1.7450754]
[1742892809298,8e-05,86748.0,86747.0,1.7776754]
[1742892812505,8e-05,86748.0,86747.0,1.8891154]
[1742892813704,0.03248,86748.0,86747.0,1.8891154]
[1742892814912,8e-05,86748.0,86747.0,1.8891154]
[1742892815602,0.03338,86748.0,86747.0,1.8891154]
[1742892818497,0.03338,86748.0,86747.0,2.2499154]
[1742892829113,0.03338,86748.0,86747.0,2.1384754]
[1742892829411,0.03338,86748.0,86747.0,2.2498754]
[1742892829819,0.03338,86748.0,86747.0,2.2598754]
[1742892852224,0.03338,86748.0,86747.0,1.8990754]
[1742892852425,0.03338,86748.0,86747.0,2.2598754]
[1742892855022,0.2063313,86748.0,86747.0,2.2598754]
[1742892858325,0.2062513,86748.0,86747.0,2.2598754]
[1742892862130,0.0333,86748.0,86747.0,2.2598754]
[1742892866233,0.0333,86748.0,86747.0,1.8990754]
[1742892866441,0.0333,86748.0,86747.0,2.2598754]
[1742892875542,0.0333,86748.0,86747.0,2.2608754]
[1742892876447,0.0333,86748.0,86747.0,2.2618754]
[1742892877836,0.0333,86748.0,86747.0,2.2578754]
[1742892878034,0.0333,86748.0,86747.0,2.2618754]
[1742892878448,0.0333,86748.0,86747.0,2.2578754]
[1742892878747,0.0333,86748.0,86747.0,2.2618754]
[1742892880844,0.0333,86748.0,86747.0,1.9010754]
[1742892881042,0.0333,86748.0,86747.0,2.2618754]
[1742892889357,0.0313,86749.0,86748.0,0.1152741]
[1742892889542,0.0313,86749.0,86748.0,0.3785741]
[1742892889944,0.0313,86749.0,86748.0,1.8785741]
[1742892890742,0.0313,86749.0,86748.0,1.8825741]
[1742892890943,0.0313,86749.0,86748.0,1.8855741]
[1742892894652,0.20421152,86749.0,86748.0,1.8855741]
[1742892895354,0.20421152,86749.0,86748.0,2.2463741]
[1742892897054,0.20421152,86749.0,86748.0,2.3576941]
[1742892902048,0.0313,86749.0,86748.0,2.3576941]
[1742892904149,0.0313,86749.0,86748.0,2.2463741]
[1742892904374,0.0313,86749.0,86748.0,2.3576941]
[1742892920259,0.0313,86749.0,86748.0,2.37237741]
[1742892920667,0.0313,86749.0,86748.0,2.33977741]
[1742892921062,0.0313,86749.0,86748.0,2.37217741]
[1742892921263,0.0619,86749.0,86748.0,2.3574941]
[1742892923173,0.0619,86749.0,86748.0,2.2461741]
[1742892925371,0.0619,86749.0,86748.0,2.26088582]
[1742892925573,0.0619,86749.0,86748.0,2.2461741]
[1742892925763,0.0619,86749.0,86748.0,2.26088615]
[1742892926469,0.0619,86749.0,86748.0,2.26089534]
[1742892927360,0.0619,86749.0,86748.0,2.2461741]
[1742892933574,0.0619,86749.0,86748.0,2.26087521]
[1742892936871,0.0619,86749.0,86748.0,2.2461741]
[1742892937073,0.0619,86749.0,86748.0,2.26112204]
[1742892940485,0.0619,86749.0,86748.0,2.2461741]
[1742892942785,0.0619,86749.0,86748.0,2.26099035]
[1742892945185,0.0619,86749.0,86748.0,2.26085236]
[1742892945384,0.23480301,86749.0,86748.0,2.26085236]
[1742892952188,0.0619,86749.0,86748.0,2.26085236]
[1742892953180,0.0619,86749.0,86748.0,2.26092646]
[1742892957078,0.0619,86749.0,86748.0,2.26107114]
[1742892958489,0.0619,86749.0,86748.0,2.2461741]
[1742892959091,0.0619,86749.0,86748.0,1.8853741]
[1742892959285,0.0619,86749.0,86748.0,2.2461741]
[1742892960592,0.0619,86749.0,86748.0,2.26104899]
[1742892967601,0.0619,86749.0,86748.0,2.2461741]
[1742892970698,0.0619,86749.0,86748.0,0.6836741]
[1742892970899,0.1771727,86749.0,86748.0,0.1276]
[1742892971101,0.1771727,86749.0,86748.0,0.1228741]
[1742892971402,0.1786127,86749.0,86748.0,0.1228741]
[1742892972398,0.1786127,86749.0,86748.0,0.1218741]
[1742892981405,0.1786127,86749.0,86748.0,0.13655994]
[1742892982995,0.06334,86749.0,86748.0,0.49735994]
[1742892983207,0.06334,86749.0,86748.0,0.59075994]
[1742892983407,0.06342,86749.0,86748.0,0.59075994]
[1742892983591,0.06342,86749.0,86748.0,2.09075994]
[1742892983795,0.1772527,86749.0,86748.0,2.09075994]
[1742892984199,0.06198,86749.0,86748.0,2.09075994]
[1742892985503,8e-05,86749.0,86748.0,2.12075994]
[1742892985897,8e-05,86749.0,86748.0,2.13663531]
[1742892986410,0.20753802,86750.0,86749.0,0.1152727]
[1742892986606,0.20753802,86750.0,86749.0,0.1452727]
[1742892986799,0.20753802,86750.0,86749.0,0.23685027]
[1742892986999,0.20753802,86750.0,86749.0,1.73685027]
[1742892987408,0.20897802,86750.0,86749.0,1.73745027]
[1742892987614,0.20753802,86750.0,86749.0,1.73685027]
[1742892987905,0.20753802,86750.0,86749.0,1.73985027]
[1742892988107,0.0657,86756.0,86755.0,0.1152648]
[1742892988311,0.20753802,86759.0,86758.0,0.1152608]
[1742892988499,0.20753802,86759.0,86758.0,0.51666289]
[1742892988806,0.20753802,86759.0,86758.0,0.61066289]